bitfinex-derivatives/quotes_BNBF0:USTF0_20250401
["timestamp","ask_amount","ask_price","bid_price","bid_amount"]
[1743486557573,0.30216273,608.67,607.67,2.050126]
[1743486557779,0.30216273,608.66,607.67,2.050126]
[1743486557989,0.30216273,608.65,607.67,2.050126]
[1743486558182,0.30216273,608.66,607.67,2.050126]
[1743486558386,0.30216273,608.65,607.67,2.050126]
[1743486558683,0.30216273,608.64,607.67,2.050126]
[1743486558887,0.30216273,608.66,607.67,2.050126]
[1743486559086,0.28615715,608.67,607.67,2.050126]
[1743486559285,0.3021628,608.66,607.67,2.050126]
[1743486560788,0.30216376,608.65,607.67,2.050126]
[1743486560988,0.28616185,608.65,607.67,2.050126]
[1743486561185,0.30216376,608.64,607.67,2.050126]
[1743486561584,0.28616185,608.65,607.67,2.050126]
[1743486562388,0.30216856,608.64,607.67,2.050126]
[1743486563388,0.28616185,608.65,607.67,2.050126]
[1743486563588,0.32845576,608.91,607.67,2.050126]
[1743486563790,0.3021624,608.9,607.67,2.050126]
[1743486563988,0.28613362,608.64,607.67,2.050126]
[1743486564189,0.32845576,608.91,607.67,2.050126]
[1743486564383,0.30215927,608.9,607.67,1.721]
[1743486564583,0.28613597,608.63,607.67,1.721]
[1743486564786,2.50882426,608.91,607.67,1.721]
[1743486564988,0.30215711,608.9,607.67,1.721]
[1743486565188,0.28613362,608.62,607.67,1.721]
[1743486565489,2.50882426,608.91,607.67,1.721]
[1743486565692,0.2861348,608.61,607.67,1.721]
[1743486566092,2.50882426,608.91,607.67,1.721]
[1743486566283,0.28613362,608.6,607.67,1.721]
[1743486566688,2.50882426,609.11,607.67,1.721]
[1743486566989,0.30215764,609.1,607.67,1.721]
[1743486567392,0.28611009,609.09,607.67,1.721]
[1743486567693,0.30215764,609.08,607.67,1.721]
[1743486571596,0.30215764,609.07,607.67,1.721]
[1743486571991,0.30215764,609.06,607.67,1.721]
[1743486572292,0.30215764,609.05,607.67,1.721]
[1743486572496,0.30215764,609.08,607.67,1.721]
[1743486572698,0.30215764,609.07,607.67,1.721]
[1743486572893,0.30215764,609.06,607.67,1.721]
[1743486573096,0.30215764,609.05,607.67,1.721]
[1743486573399,0.30215764,609.04,607.67,1.721]
[1743486573599,2.50882426,608.92,607.67,1.721]
[1743486573798,0.30215764,608.91,607.67,1.721]
[1743486574899,0.30215764,608.9,607.67,1.721]
[1743486575201,0.30215764,608.89,607.67,1.721]
[1743486575499,0.30215764,608.88,607.67,1.721]
[1743486575794,0.30215764,608.87,607.67,1.721]
[1743486576000,0.28612303,608.87,607.67,1.721]
[1743486576196,0.30215764,608.86,607.67,1.721]
[1743486576702,0.30216684,608.85,607.67,1.721]
[1743486576900,0.30216684,608.86,607.67,1.721]
[1743486577098,0.30216684,608.85,607.67,1.721]
[1743486577294,0.30216684,608.84,607.67,1.721]
[1743486577494,0.30216684,608.83,607.67,1.721]
[1743486577697,0.30216684,608.82,607.67,1.721]
[1743486577895,0.30216684,608.86,607.67,1.721]
[1743486578100,0.30216684,608.85,607.67,1.721]
[1743486578302,0.30216778,608.84,607.67,1.721]
[1743486578506,0.30216778,608.83,607.67,1.721]
[1743486578703,0.30216778,608.86,607.67,1.721]
[1743486578902,0.28613832,608.82,607.67,1.721]
[1743486579107,0.30216778,608.81,607.67,1.721]
[1743486579809,0.28613832,608.82,607.67,1.721]
[1743486579810,0.30216302,608.8,607.67,1.721]
[1743486580108,0.30216302,608.79,607.67,1.721]
[1743486580308,0.30216302,608.81,607.67,1.721]
[1743486580608,0.30216302,608.8,607.67,1.721]
[1743486580805,0.30216302,608.79,607.67,1.721]
[1743486581110,0.30216302,608.78,607.67,1.721]
[1743486581309,0.30216302,608.81,607.67,1.721]
[1743486581908,0.30216302,609.02,607.67,1.721]
[1743486582211,0.2861195,608.8,607.67,1.721]
[1743486582405,0.30216302,608.79,607.67,1.721]
[1743486582608,0.30216302,608.78,607.67,1.721]
[1743486582808,0.30216302,608.77,607.67,1.721]
[1743486583104,0.30216804,608.76,607.67,1.721]
[1743486583305,0.30216804,608.78,607.67,1.721]
[1743486583507,0.30216804,608.77,607.67,1.721]
[1743486583805,0.30216804,608.76,607.67,1.721]
[1743486584006,0.30216804,608.78,607.67,1.721]
[1743486584206,0.30216804,608.77,607.67,1.721]
[1743486584407,0.30216804,608.78,607.67,1.721]
[1743486584608,0.30216804,608.77,607.67,1.721]
[1743486584808,0.30216804,608.76,607.67,1.721]
[1743486585008,0.28611833,608.76,607.67,1.721]
[1743486585212,0.30216804,608.75,607.67,1.721]
[1743486586112,0.28611833,608.76,607.67,1.721]
[1743486586310,0.30216804,608.75,607.67,1.721]
[1743486586510,0.28611833,608.76,607.67,1.721]
[1743486587710,2.50882426,609.04,607.67,1.721]
[1743486588010,0.28611833,608.75,607.67,1.721]
[1743486588211,2.50882426,609.04,607.67,1.721]
[1743486588411,0.63055254,609.03,607.67,1.721]
[1743486588612,0.2861195,608.74,607.67,1.721]
[1743486589107,0.32839644,609.02,607.67,1.721]
[1743486589314,0.28612068,608.73,607.67,1.721]
[1743486589611,0.32839644,609.02,607.67,1.721]
[1743486589813,0.28612068,608.72,607.67,1.721]
[1743486590112,0.32839644,609.02,607.67,1.721]
[1743486590313,0.30215711,609.01,607.67,1.721]
[1743486590512,0.28612186,608.71,607.67,1.721]
[1743486590707,0.32840722,609.0,607.67,1.721]
[1743486590906,0.30215711,608.99,607.67,1.721]
[1743486591210,0.28612303,608.7,607.67,1.721]
[1743486591414,0.32840722,609.0,607.67,1.721]
[1743486591612,0.28612421,608.69,607.67,1.721]
[1743486592013,0.32840722,609.0,607.67,1.721]
[1743486592213,0.28612303,608.68,607.67,1.721]
[1743486592614,0.32840722,609.0,607.67,1.721]
[1743486592809,0.28612303,608.67,607.67,1.721]
[1743486593212,0.32840722,609.0,607.67,1.721]
[1743486593410,0.28612303,608.66,607.67,1.721]
[1743486593814,0.32840722,609.0,607.67,1.721]
[1743486594112,0.28612303,608.65,607.67,1.721]
[1743486594309,0.32840722,609.0,607.67,1.721]
[1743486594513,0.30215764,608.99,607.67,1.721]
[1743486594713,0.28612303,608.64,607.67,1.721]
[1743486595018,0.32841801,608.98,607.67,1.721]
[1743486595213,0.28612539,608.63,607.67,1.721]
[1743486595620,0.32841801,608.98,607.67,1.721]
[1743486595819,0.28612539,608.62,607.67,1.721]
[1743486596219,0.32841801,608.98,607.67,1.721]
[1743486596416,0.28613009,608.61,607.67,1.721]
[1743486596819,0.32841801,608.98,607.67,1.721]
[1743486597019,0.28613009,608.6,607.67,1.721]
[1743486597418,0.32841801,608.98,607.67,1.721]
[1743486597615,0.28613009,608.59,607.67,1.721]
[1743486597919,0.32841801,608.98,607.67,1.721]
[1743486598120,0.30216447,608.97,607.67,1.721]
[1743486598420,0.28613127,608.58,607.67,1.721]
[1743486598614,0.32842879,608.96,607.67,1.721]
[1743486598817,0.28613244,608.57,607.67,1.721]
[1743486599314,2.50882426,608.95,607.67,1.721]
[1743486599520,0.28613362,608.56,607.67,1.721]
[1743486599719,0.32843958,608.94,607.67,1.721]
[1743486599919,2.81099224,608.93,607.67,1.721]
[1743486600120,0.2861348,608.55,607.67,1.721]
[1743486600420,0.32845037,608.92,607.67,1.721]
[1743486600622,0.28613715,608.54,607.67,1.721]
[1743486601020,0.32845037,608.92,607.67,1.721]
[1743486601222,0.28613715,608.53,607.67,1.721]
[1743486601617,0.32845037,608.92,607.67,1.721]
[1743486601817,0.28613715,608.52,607.67,1.721]
[1743486602220,2.50882426,608.91,607.67,1.721]
[1743486602422,0.28613832,608.51,607.67,1.721]
[1743486602817,2.50882426,608.91,607.67,1.721]
[1743486603021,0.2861395,608.5,607.67,1.721]
[1743486603422,2.50882426,608.84,607.67,1.721]
[1743486603620,0.2861395,608.49,607.67,1.721]
[1743486604025,2.50882426,608.84,607.67,1.721]
[1743486604226,0.28615244,608.48,607.67,1.721]
[1743486604626,0.32845037,608.92,607.67,1.721]
[1743486604825,0.28615244,608.47,607.67,1.721]
[1743486605223,0.32845037,608.92,607.67,1.721]
[1743486605419,0.28614185,608.46,607.67,1.721]
[1743486605827,0.32845037,608.92,607.67,1.721]
[1743486606026,0.28614303,608.45,607.67,1.721]
[1743486606424,0.32845037,608.92,607.67,1.721]
[1743486606721,0.28614303,608.44,607.67,1.721]
[1743486606921,0.32845037,608.92,607.67,1.721]
[1743486607127,0.30217595,608.91,607.67,1.721]
[1743486607329,0.28614303,608.43,607.67,1.721]
[1743486607528,0.32846115,608.9,607.67,1.721]
[1743486607728,0.30217529,608.89,607.67,1.721]
[1743486607922,0.28614421,608.42,607.67,1.721]
[1743486608129,0.32846115,608.9,607.67,1.721]
[1743486608328,0.30217776,608.89,607.67,1.721]
[1743486608527,0.28614421,608.41,607.67,1.721]
[1743486608726,0.32846115,608.9,607.67,1.721]
[1743486608927,0.30217939,608.89,607.67,1.721]
[1743486609126,0.28614538,608.4,607.67,1.721]
[1743486609323,0.32846115,608.9,607.67,1.721]
[1743486609522,0.30217818,608.89,607.67,1.721]
[1743486609726,0.28614538,608.39,607.67,1.721]
[1743486609921,0.32846115,608.9,607.67,1.721]
[1743486610127,0.30217938,608.89,607.67,1.721]
[1743486610429,0.28614538,608.38,607.67,1.721]
[1743486610632,0.32846115,608.9,607.67,1.721]
[1743486610830,0.28614421,608.88,607.67,1.721]
[1743486611024,0.30217845,608.87,607.67,1.721]
[1743486611228,0.30217884,608.86,607.67,1.721]
[1743486611530,0.30217884,608.85,607.67,1.721]
[1743486611731,0.30217884,608.87,607.67,1.721]
[1743486611928,0.30217884,608.86,607.67,1.721]
[1743486612127,0.30217884,608.87,607.67,1.721]
[1743486612331,0.30217884,608.86,607.67,1.721]
[1743486612523,0.30217884,608.85,607.67,1.721]
[1743486612728,0.28614421,608.88,607.67,1.721]
[1743486613031,0.3021769,608.87,607.67,1.721]
[1743486614333,2.50882426,608.74,607.67,1.721]
[1743486614632,0.3021769,608.73,607.67,1.721]
[1743486615327,0.28616303,608.72,607.67,1.721]
[1743486615525,0.3021769,608.71,607.67,1.721]
[1743486616232,0.30217864,608.7,607.67,1.721]
[1743486616426,0.30217864,608.71,607.67,1.721]
[1743486616732,0.30217864,608.7,607.67,1.721]
[1743486616930,0.30217864,608.69,607.67,1.721]
[1743486617130,0.28616303,608.72,607.67,1.721]
[1743486617328,0.30217886,608.71,607.67,1.721]
[1743486618033,0.58834424,608.7,607.67,1.721]
[1743486618235,0.30217886,608.69,607.67,1.721]
[1743486620743,0.28616538,608.7,607.67,1.721]
[1743486620942,0.30217702,608.69,607.67,1.721]
[1743486621542,0.28616538,608.7,607.67,1.721]
[1743486622241,0.63088001,608.69,607.67,1.721]
[1743486622443,0.63089785,608.68,607.67,1.721]
[1743486622641,0.63090325,608.67,607.67,1.721]
[1743486622840,0.63090865,608.66,607.67,1.721]
[1743486623042,0.63091405,608.65,607.67,1.721]
[1743486623236,0.63091945,608.64,607.67,1.721]
[1743486623439,0.63092485,608.63,607.67,1.721]
[1743486623641,0.63093025,608.62,607.67,1.721]
[1743486623834,0.63093564,608.61,607.67,1.721]
[1743486624039,0.7041848,609.81,607.67,1.721]
[1743486624040,0.63094104,608.6,607.67,1.721]
[1743486624235,0.30231798,608.59,607.67,1.721]
[1743486624439,0.63094644,608.59,607.67,1.721]
[1743486624638,0.30231798,608.58,607.67,1.721]
[1743486624840,0.32863926,608.57,607.67,1.721]
[1743486625040,0.30231798,608.56,607.67,1.721]
[1743486625240,0.32865006,608.55,607.67,1.721]
[1743486625440,0.30231798,608.54,607.67,1.721]
[1743486625643,0.32866087,608.53,607.67,1.721]
[1743486625843,0.30231798,608.52,607.67,1.721]
[1743486626043,0.32867167,608.51,607.67,1.721]
[1743486626244,0.30231798,608.5,607.67,1.721]
[1743486626944,0.32868247,608.49,607.67,1.721]
[1743486627143,0.30246808,608.48,607.67,1.721]
[1743486627343,0.32869327,608.47,607.67,1.721]
[1743486627539,0.30246808,608.46,607.67,1.721]
[1743486628137,0.32870408,608.45,607.67,1.721]
[1743486628339,0.30246808,608.44,607.67,1.721]
[1743486628544,0.32871488,608.43,607.67,1.721]
[1743486628844,0.30246808,608.42,607.67,1.721]
[1743486629148,0.32872569,608.41,607.67,1.721]
[1743486629443,0.30246808,608.4,607.67,1.721]
[1743486629745,0.3287365,608.39,607.67,1.721]
[1743486629945,0.30246808,608.38,607.67,1.721]
[1743486630146,0.3287473,608.37,607.67,1.721]
[1743486630445,0.30246808,608.36,607.67,1.721]
[1743486630646,0.32875811,608.35,607.67,1.721]
[1743486630846,0.30246808,608.34,605.57,1.94214067]
[1743486631145,0.32876892,608.33,605.7,0.33019646]
[1743486631446,0.30246808,608.32,605.7,0.33019646]
[1743486631639,0.6312424,608.32,605.7,0.33019646]
[1743486631840,0.30246808,608.31,605.7,0.33019646]
[1743486633147,0.30246808,608.31,605.71,0.70762027]
[1743486633347,0.30246808,608.31,605.84,0.33012016]
[1743486634148,0.30246808,608.31,605.85,0.693]
[1743486634342,0.30246808,608.31,605.97,0.33004934]
[1743486636142,0.28656362,608.3,605.97,0.33004934]
[1743486636349,0.30246808,608.29,605.97,0.33004934]
[1743486636749,0.30246618,608.28,605.97,0.33004934]
[1743486636949,0.30246618,608.29,605.97,0.33004934]
[1743486637151,0.30246618,608.28,605.97,0.33004934]
[1743486637347,0.30246618,608.27,605.97,0.33004934]
[1743486637544,0.30246618,608.26,605.97,0.33004934]
[1743486637745,0.30246618,608.25,605.97,0.33004934]
[1743486637949,0.30246618,608.29,605.97,0.33004934]
[1743486638149,0.30246618,608.28,605.97,0.33004934]
[1743486638347,0.30246618,608.29,605.97,0.33004934]
[1743486638946,0.2865707,608.28,605.97,0.33004934]
[1743486639345,0.30246618,608.27,605.97,0.33004934]
[1743486641952,0.30246618,608.26,605.97,0.33004934]
[1743486642152,0.28657306,608.26,605.97,0.33004934]
[1743486642447,0.30246618,608.25,605.97,0.33004934]
[1743486644750,0.28657306,608.26,605.97,0.33004934]
[1743486646550,0.30235109,608.25,605.97,0.33004934]
[1743486647853,0.30235109,608.31,605.97,0.33004934]
[1743486648054,0.28649875,608.24,605.97,0.33004934]
[1743486650655,2.50882426,608.91,605.97,0.33004934]
[1743486650855,0.32846655,608.89,605.97,0.33004934]
[1743486651055,0.28640207,608.23,605.97,0.33004934]
[1743486651254,0.32846655,608.89,605.98,0.692]
[1743486651459,0.30230008,608.88,606.12,0.32996766]
[1743486651654,0.32848273,608.86,606.12,0.32996766]
[1743486651858,0.30230008,608.85,606.12,0.32996766]
[1743486652059,0.6307936,608.84,606.12,0.32996766]
[1743486652261,0.630799,608.83,606.12,0.32996766]
[1743486652459,0.63080439,608.82,606.12,0.32996766]
[1743486652662,0.32850971,608.81,606.12,0.32996766]
[1743486652865,0.30230127,608.8,606.12,0.32996766]
[1743486653066,0.63082177,608.79,606.12,0.32996766]
[1743486653366,0.30230127,608.78,606.12,0.32996766]
[1743486653561,0.63083257,608.77,606.12,0.32996766]
[1743486653763,0.63083796,608.76,606.12,0.32996766]
[1743486653961,0.63084336,608.75,606.12,0.32996766]
[1743486654159,0.63084876,608.74,606.12,0.32996766]
[1743486654363,0.63085415,608.73,606.13,0.612]
[1743486654658,0.63085955,608.72,606.26,0.32989146]
[1743486654862,0.63086495,608.71,606.26,0.32989146]
[1743486655063,0.63087035,608.7,606.26,0.32989146]
[1743486655262,0.63087574,608.69,606.26,0.32989146]
[1743486655459,0.63088114,608.68,606.26,0.32989146]
[1743486655659,0.30230127,608.67,606.26,0.32989146]
[1743486657063,0.28640325,608.66,606.26,0.32989146]
[1743486657268,0.30230127,608.65,606.26,0.32989146]
[1743486659167,0.28640325,608.66,606.26,0.32989146]
[1743486659363,0.3023017,608.65,606.26,0.32989146]
[1743486659961,0.32857987,608.68,606.26,0.32989146]
[1743486659962,0.3023017,608.64,606.26,0.32989146]
[1743486660270,0.3023017,608.63,606.26,0.32989146]
[1743486660663,0.28640325,608.64,606.26,0.32989146]
[1743486660868,0.30229988,608.63,606.26,0.32989146]
[1743486662868,0.30229988,608.67,606.26,0.32989146]
[1743486663069,0.28640325,608.62,606.26,0.32989146]
[1743486663268,0.30229988,608.61,606.26,0.32989146]
[1743486663668,0.30229142,608.6,606.26,0.32989146]
[1743486663869,0.30229142,608.61,606.26,0.32989146]
[1743486664464,0.63090908,608.61,606.26,0.32989146]
[1743486664668,0.30229142,608.6,606.26,0.32989146]
[1743486665171,0.30229142,608.6,606.27,0.42]
[1743486665470,0.30229142,608.6,606.38,0.32982618]
[1743486666174,0.2864115,608.59,606.38,0.32982618]
[1743486666372,0.30229142,608.58,606.38,0.32982618]
[1743486666968,0.63092528,608.58,606.38,0.32982618]
[1743486667174,0.63093068,608.57,606.38,0.32982618]
[1743486667474,0.63093608,608.56,606.38,0.32982618]
[1743486667668,0.63094148,608.55,606.38,0.32982618]
[1743486667869,0.63094689,608.54,606.38,0.32982618]
[1743486668075,0.63095229,608.53,606.38,0.32982618]
[1743486668274,0.63095769,608.52,606.38,0.32982618]
[1743486668575,0.63096309,608.51,606.38,0.32982618]
[1743486668874,0.63096849,608.5,606.38,0.32982618]
[1743486669072,0.30229142,608.49,606.38,0.32982618]
[1743486669272,0.32868787,608.48,606.38,0.32982618]
[1743486669471,0.30229142,608.47,606.38,0.32982618]
[1743486669674,0.32869868,608.46,606.38,0.32982618]
[1743486669871,0.30229142,608.45,606.38,0.32982618]
[1743486672173,0.28646455,608.44,606.38,0.32982618]
[1743486672374,0.30229142,608.43,606.38,0.32982618]
[1743486674976,0.30229142,608.45,606.38,0.32982618]
[1743486675172,0.32869868,608.46,606.38,0.32982618]
[1743486675173,0.28646455,608.42,606.38,0.32982618]
[1743486675373,0.30240395,608.41,606.38,0.32982618]
[1743486676278,0.30240395,608.41,606.39,0.612]
[1743486676677,0.30240395,608.41,606.49,0.32976636]
[1743486677177,0.30240395,608.4,606.49,0.32976636]
[1743486677374,0.30240395,608.39,606.49,0.32976636]
[1743486677578,0.30240395,608.41,606.49,0.32976636]
[1743486677774,0.30240395,608.4,606.49,0.32976636]
[1743486677975,0.30240395,608.39,606.49,0.32976636]
[1743486681581,0.28645276,608.4,606.49,0.32976636]
[1743486682673,0.28645276,608.4,606.5,0.42]
[1743486682878,0.28645276,608.4,606.52,0.32975004]
[1743486683778,0.30233915,608.39,606.52,0.32975004]
[1743486683982,0.30233915,608.38,606.52,0.32975004]
[1743486684182,0.30233915,608.37,606.52,0.32975004]
[1743486685078,0.30233877,608.36,606.52,0.32975004]
[1743486685282,0.30233877,608.37,606.52,0.32975004]
[1743486685482,0.28640207,608.38,606.52,0.32975004]
[1743486685483,0.30233877,608.35,606.52,0.32975004]
[1743486685679,0.30233877,608.34,606.52,0.32975004]
[1743486685886,0.30233877,608.33,606.52,0.32975004]
[1743486686186,0.30233877,608.32,606.52,0.32975004]
[1743486686685,0.32869868,608.46,606.52,0.32975004]
[1743486686986,0.2864115,608.31,606.52,0.32975004]
[1743486687285,0.30233877,608.3,606.52,0.32975004]
[1743486687486,0.30233877,608.29,606.52,0.32975004]
[1743486687680,0.30233877,608.28,606.52,0.32975004]
[1743486687882,0.30233877,608.27,606.52,0.32975004]
[1743486688079,0.30233877,608.26,606.52,0.32975004]
[1743486688383,0.30233877,608.25,606.52,0.32975004]
[1743486688586,0.30233877,608.29,606.52,0.32975004]
[1743486688783,0.30233877,608.28,606.52,0.32975004]
[1743486688987,0.30233877,608.29,606.52,0.32975004]
[1743486689183,0.30233877,608.28,606.52,0.32975004]
[1743486689485,0.30233877,608.27,606.52,0.32975004]
[1743486689785,0.30233877,608.26,606.52,0.32975004]
[1743486690086,0.30233877,608.25,606.52,0.32975004]
[1743486690285,0.28640207,608.25,606.52,0.32975004]
[1743486690485,0.30233877,608.24,606.52,0.32975004]
[1743486692981,0.30233877,608.45,606.52,0.32975004]
[1743486693186,0.28643036,608.23,606.52,0.32975004]
[1743486693490,0.30233877,608.22,606.52,0.32975004]
[1743486693688,0.32869868,608.46,606.52,0.32975004]
[1743486693689,0.30233877,608.21,606.52,0.32975004]
[1743486693889,0.30233877,608.2,606.52,0.32975004]
[1743486694186,0.30233877,608.19,606.52,0.32975004]
[1743486694490,0.30233877,608.18,606.52,0.32975004]
[1743486694791,0.30233877,608.21,606.52,0.32975004]
[1743486694992,0.30233877,608.2,606.52,0.32975004]
[1743486695192,0.30233877,608.19,606.52,0.32975004]
[1743486695387,0.30233877,608.18,606.52,0.32975004]
[1743486695590,0.30233877,608.17,606.52,0.32975004]
[1743486695790,0.30233877,608.21,606.52,0.32975004]
[1743486695987,0.30233877,608.2,606.52,0.32975004]
[1743486696186,0.28645865,608.16,606.52,0.32975004]
[1743486696491,0.30233877,608.15,606.52,0.32975004]
[1743486696691,0.28645865,608.16,606.52,0.32975004]
[1743486701794,0.32869868,608.46,606.52,0.32975004]
[1743486701996,0.30238566,608.45,606.52,0.32975004]
[1743486702197,0.5888007,608.45,606.52,0.32975004]
[1743486702394,0.30238566,608.44,606.52,0.32975004]
[1743486703101,0.30238566,608.44,606.52,0.74975004]
[1743486703897,0.30238566,608.44,606.52,1.44075004]
[1743486704099,0.32871488,608.43,606.52,1.44075004]
[1743486704297,0.30238566,608.42,606.52,1.44075004]
[1743486704597,0.32872569,608.41,606.52,1.44075004]
[1743486704802,0.30238566,608.4,606.52,1.44075004]
[1743486705002,0.3287365,608.39,606.52,1.44075004]
[1743486705204,0.30238566,608.38,606.52,1.44075004]
[1743486707604,0.30241608,608.37,606.52,1.44075004]
[1743486707799,0.30241608,608.36,606.52,1.44075004]
[1743486708004,0.30241608,608.35,606.52,1.44075004]
[1743486708199,0.30241608,608.34,606.52,1.44075004]
[1743486708606,0.30241608,608.34,606.52,2.05375004]
[1743486709707,0.28645983,608.35,606.52,2.05375004]
[1743486709907,0.30242521,608.34,606.52,2.05375004]
[1743486711004,0.58888033,608.33,606.52,2.05375004]
[1743486711204,0.30242521,608.32,606.52,2.05375004]
[1743486712506,0.30242352,608.31,606.52,2.05375004]
[1743486712705,0.30242352,608.3,606.52,2.05375004]
[1743486712905,0.30242352,608.32,606.52,2.05375004]
[1743486713106,0.30242352,608.31,606.52,2.05375004]
[1743486713406,0.30242352,608.3,606.52,2.05375004]
[1743486713602,0.30242352,608.32,606.52,2.05375004]
[1743486713805,0.30242352,608.31,606.52,2.05375004]
[1743486714002,0.30242352,608.38,606.52,2.05375004]
[1743486714203,0.2864504,608.3,606.52,2.05375004]
[1743486714407,0.30242352,608.29,606.52,2.05375004]
[1743486714805,0.28646101,608.28,606.52,2.05375004]
[1743486715308,0.30242352,608.27,606.52,2.05375004]
[1743486716909,0.58888689,608.26,606.52,2.05375004]
[1743486717110,0.30242352,608.25,606.52,2.05375004]
[1743486718916,0.30242032,608.24,606.52,2.05375004]
[1743486719217,0.30242032,608.23,606.52,2.05375004]
[1743486719418,0.30242032,608.25,606.52,2.05375004]
[1743486719616,0.30242032,608.24,606.52,2.05375004]
[1743486719812,0.30242032,608.25,606.52,2.05375004]
[1743486720019,0.28647516,608.23,606.52,2.05375004]
[1743486720214,0.30242032,608.22,606.52,2.05375004]
[1743486721617,0.30240848,608.21,606.52,2.05375004]
[1743486721821,0.30240848,608.2,606.52,2.05375004]
[1743486722120,0.30240848,608.19,606.52,2.05375004]
[1743486722321,0.30240848,608.22,606.52,2.05375004]
[1743486722520,0.30240848,608.21,606.52,2.05375004]
[1743486722721,0.30240848,608.2,606.52,2.05375004]
[1743486722921,0.30240848,608.19,606.52,2.05375004]
[1743486723119,0.30240848,608.18,606.52,2.05375004]
[1743486723325,0.28644804,608.19,606.52,2.05375004]
[1743486723626,0.30240848,608.18,606.52,2.05375004]
[1743486726531,0.28644804,608.19,606.52,2.05375004]
[1743486726826,0.30243057,608.18,606.52,2.05375004]
[1743486729029,0.30243057,608.17,606.52,2.05375004]
[1743486729229,0.28648106,608.17,606.52,2.05375004]
[1743486729426,0.30243057,608.16,606.52,2.05375004]
[1743486729929,0.30242796,608.15,606.52,2.05375004]
[1743486730128,0.30242796,608.14,606.52,2.05375004]
[1743486730328,0.30242796,608.13,606.52,2.05375004]
[1743486730629,0.30242796,608.12,606.52,2.05375004]
[1743486730931,0.30242796,608.11,606.52,2.05375004]
[1743486731230,0.30242796,608.1,606.52,2.05375004]
[1743486731428,0.30242699,608.09,606.52,2.05375004]
[1743486731728,0.30242699,608.08,606.52,2.05375004]
[1743486731923,0.30242699,608.07,606.52,2.05375004]
[1743486732123,0.30242699,608.06,606.52,2.05375004]
[1743486732326,0.30242699,608.16,606.52,2.05375004]
[1743486732931,0.30243875,608.15,606.52,2.05375004]
[1743486733130,0.30243875,608.14,606.52,2.05375004]
[1743486733330,0.30243875,608.13,606.52,2.05375004]
[1743486733533,0.30243875,608.16,606.52,2.05375004]
[1743486733732,0.30243875,608.15,606.52,2.05375004]
[1743486733927,0.30243875,608.16,606.52,2.05375004]
[1743486734130,0.30243875,608.15,606.52,2.05375004]
[1743486734332,0.30243875,608.14,606.52,2.05375004]
[1743486734536,0.30243534,608.13,606.52,2.05375004]
[1743486734840,0.30243534,608.12,606.52,2.05375004]
[1743486735033,0.30243534,608.11,606.52,2.05375004]
[1743486735233,0.30243534,608.1,606.52,2.05375004]
[1743486735434,0.30243534,608.09,606.52,2.05375004]
[1743486735633,0.30243534,608.08,606.52,2.05375004]
[1743486735828,0.30243534,608.11,606.52,2.05375004]
[1743486736137,0.30243534,608.1,606.52,2.05375004]
[1743486736330,0.30243534,608.11,606.52,2.05375004]
[1743486736537,0.30243632,608.1,606.52,2.05375004]
[1743486736845,0.30243632,608.09,606.52,2.05375004]
[1743486737030,0.30243632,608.11,606.52,2.05375004]
[1743486738142,0.30243632,608.1,606.52,2.05375004]
[1743486738436,0.28649167,608.1,606.52,2.05375004]
[1743486739036,0.30243203,608.09,606.52,2.05375004]
[1743486739437,0.28649167,608.1,606.52,2.05375004]
[1743486743740,2.50882426,608.38,606.52,2.05375004]
[1743486743941,0.30243474,608.37,606.52,2.05375004]
[1743486744240,0.28646101,608.09,606.52,2.05375004]
[1743486744539,2.50882426,608.38,606.52,2.05375004]
[1743486744741,0.28646101,608.36,606.52,2.05375004]
[1743486744936,0.302435,608.35,606.52,2.05375004]
[1743486746044,0.30243511,608.34,606.52,2.05375004]
[1743486746245,0.30243511,608.35,606.52,2.05375004]
[1743486746442,0.30243511,608.34,606.52,2.05375004]
[1743486746742,0.30243511,608.33,606.52,2.05375004]
[1743486746938,0.32877432,608.32,606.52,2.05375004]
[1743486747144,0.30243511,608.31,606.52,2.05375004]
[1743486747541,0.30245499,608.3,606.52,2.05375004]
[1743486747741,0.30245499,608.31,606.52,2.05375004]
[1743486748042,0.30245499,608.3,606.52,2.05375004]
[1743486748234,0.30245499,608.29,606.52,2.05375004]
[1743486748438,0.30245499,608.28,606.52,2.05375004]
[1743486748642,0.30245499,608.31,606.52,2.05375004]
[1743486748844,0.30245499,608.3,606.52,2.05375004]